Cogmind - Beta 17.1 @@@ ROGUE MODE // 2026.08.28 @ 09:30:37 Player: Lazz Result: Destroyed by B-75 Beast with Heavy Plasma Cannon Performance ------------- Evolutions (4) 2000 Regions Visited (8) 1600 Robots Destroyed (27) 135 Value Destroyed (539) 539 Prototype IDs (6) 120 Alien Tech Used (0) 0 Bonus (0) 0 TOTAL SCORE: 4394 Bonus ------- None Cogmind --------- Core Integrity 0/850 Matter 85/300 Energy 99/100 System Corruption 3% Temperature Cool (12) Movement Core (50) Location -6/Extension Parts ------- > --- POWER (1) -------- (None) > --- PROPULSION (5) --- (None) > --- UTILITY (7) ------ Core Analyzer > --- WEAPON (2) ------- (None) > --- INVENTORY (5) ---- Makeshift Coolant Network Peak State ------------ > --- POWER ------------ Fission Core > --- PROPULSION ------- Improved Hover Unit Gravmag System Gravmag System Gravmag System Gravmag System > --- UTILITY ---------- Improved Sensor Array Core Analyzer Reaction Control System Improved Medium Armor Plating Focal Shield Hacking Suite > --- WEAPON ----------- High-powered Shotgun Coil Gun > --- INVENTORY -------- Light Deuterium Engine Makeshift Coolant Network [Rating: 54] Favorites ----------- Power Ion Engine Engine Ion Engine Power Core Fission Core Propulsion Light Treads Treads Light Treads Leg Improved Aluminum Leg Hover Unit Gravmag System Flight Unit Improved VTOL Module Utility Large Storage Unit Device Improved Heat Sink Storage Large Storage Unit Processor Core Analyzer Hackware Hacking Suite Protection Improved Medium Armor Plating Weapon Light Assault Rifle Energy Gun Small Laser Ballistic Gun Light Assault Rifle Launcher Grenade Launcher Build | -11 -10 -10 -9 -9 -8 -7 -6 -6 ------- Run | Yrd Mat Min Mat Min Mat Fac Fac Ext Slots Evolved 8 | . . . 2 . 2 2 2 . Power . | . . . . . . . . . Propulsion 3 | . . . 1 . . 1 1 . Utility 5 | . . . 1 . 2 1 1 . Weapon . | . . . . . . . . . Parts Attached 49 | 7 2 2 2 4 18 4 8 2 Power 5 | 1 . . . 1 1 1 1 . Engine 4 | 1 . . . 1 1 1 . . Core 1 | . . . . . . . 1 . Reactor . | . . . . . . . . . Propulsion 16 | 2 . . 2 . 8 1 1 2 Treads 4 | 2 . . 1 . 1 . . . Leg 1 | . . . 1 . . . . . Wheel . | . . . . . . . . . Hover 7 | . . . . . 3 1 1 2 Flight 4 | . . . . . 4 . . . Utility 14 | 2 2 1 . . 4 1 4 . Device 8 | 1 1 1 . . 3 1 1 . Storage 2 | 1 1 . . . . . . . Processor 1 | . . . . . . . 1 . Hackware 2 | . . . . . 1 . 1 . Protection 1 | . . . . . . . 1 . Artifact . | . . . . . . . . . Weapon 14 | 2 . 1 . 3 5 1 2 . Energy Gun 6 | . . 1 . 2 3 . . . Energy Cannon . | . . . . . . . . . Ballistic Gun 6 | 2 . . . . 1 1 2 . Ballistic Cannon . | . . . . . . . . . Launcher 2 | . . . . 1 1 . . . Special Weapon . | . . . . . . . . . Impact Weapon . | . . . . . . . . . Slashing Weapon . | . . . . . . . . . Piercing Weapon . | . . . . . . . . . Special Melee Weapon . | . . . . . . . . . Unidentified Prototypes 3 | . . . . . 3 . . . Parts Lost 24 | . . . 1 2 8 . 1 12 Power 3 | . . . 1 . 1 . . 1 Propulsion 6 | . . . . . 1 . . 5 Utility 8 | . . . . . 3 . 1 4 Weapon 7 | . . . . 2 3 . . 2 Highest Loss Streak 8 | . . . 1 2 7 . 1 8 To Critical Strikes . | . . . . . . . . . Average Backups 5 | . 6 8 8 9 4 2 2 2 Power . | . . . . . . . . . Propulsion . | . . . . . . . . 1 Utility 3 | . 4 5 5 5 2 1 1 1 Weapon 1 | . 2 3 3 3 . . . . Tool/Special . | . . . . . . . . . Unused Backups 5 | . . . . . 3 . 1 1 Power 1 | . . . . . . . 1 . Propulsion 1 | . . . . . 1 . . . Utility 2 | . . . . . 1 . . 1 Weapon 1 | . . . . . 1 . . . Tool/Special . | . . . . . . . . . Average Slot Usage (%) 79 | . 97 100 82 86 56 64 81 49 Engine 7 | . 14 14 6 9 4 2 . . Core 1 | . . . . . . . 5 4 Treads 17 | . 28 28 25 33 4 . . . Hover 8 | . . . . . 3 30 29 14 Flight 1 | . . . . . 12 . . . Device 12 | . 11 14 11 11 13 18 15 6 Storage 7 | . 14 14 11 11 1 . . . Processor 1 | . . . . . . . 3 6 Hackware 1 | . . . . . 4 . 4 6 Protection 1 | . . . . . . . 5 3 Energy Gun 8 | . . 12 11 21 8 . . . Ballistic Gun 10 | . 28 15 11 . 2 11 13 7 Peak Build Rating 54 | 7 8 11 13 14 34 34 54 46 Average Rating 19 | 5 7 10 12 13 19 30 47 31 On Entrance 16 | . 7 8 11 11 14 23 28 46 Avg Prop Armor Cover (%) 8 | . . . 6 . 9 12 3 . Naked Turns . | . . . . . . . . . Heaviest Build 30 | 13 28 30 30 30 30 12 28 27 Greatest Support 69 | 40 40 40 60 60 69 36 47 30 Greatest Overweight (x) 5 | . . . . . 1 . . 5 Average Overweight (x) . | . . . . . . . . . Largest Inventory Capacity 15 | 8 15 15 15 15 15 5 5 5 Average Capacity 10 | 7 10 15 15 15 6 5 5 5 Most Carried 13 | 4 8 8 10 12 13 5 5 5 Average Carried 7 | 1 6 8 8 11 6 4 4 4 Final Capacity 15 | 8 15 15 15 15 5 5 5 5 Final Carried 12 | 4 8 8 10 12 5 5 5 3 Class Distribution -------------------- 73% | Mutant 21% | Scavenger-Mutant Dominant Class ---------------- Mutant | -10/Materials Mutant | -10/Mines Mutant | -9/Materials Scavenger-Mutant | -9/Mines Mutant | -8/Materials Mutant | -7/Factory Mutant | -6/Factory Mutant | -6/Extension Resources | -11 -10 -10 -9 -9 -8 -7 -6 -6 ----------- Run | Yrd Mat Min Mat Min Mat Fac Fac Ext Matter Collected 706 | 235 133 24 24 96 69 56 26 43 Remotely . | . . . . . . . . . Salvage Created 868 | 103 210 46 92 176 131 84 26 . Parts 58 | 10 14 7 3 7 9 6 2 . Haulers Intercepted 1 | . . . . . 1 . . . Recyclers Shooed 3 | 1 . . . 1 . 1 . . Parts Field Recycled . | . . . . . . . . . Retrieved Matter . | . . . . . . . . . Parts Self-Destructed . | . . . . . . . . . Prevented . | . . . . . . . . . Parts Restored . | . . . . . . . . . Kills | -11 -10 -10 -9 -9 -8 -7 -6 -6 ------- Run | Yrd Mat Min Mat Min Mat Fac Fac Ext Combat Hostiles Destroyed 15 | . 4 3 2 3 3 . . . Guns 13 | . 4 3 2 2 2 . . . AOE 2 | . . . . 1 1 . . . Classes Destroyed 11 | 2 3 1 1 1 2 1 . . Worker 1 | . . . . . . 1 . . Tunneler 3 | 3 . . . . . . . . Hauler 1 | . . . . . 1 . . . Recycler 4 | 1 . . . 1 1 1 . . Operator 2 | . 1 . . . . . 1 . Watcher 1 | . 1 . . . . . . . Swarmer 3 | . . 3 . . . . . . Cutter 3 | . . . . . 3 . . . Grunt 7 | . 4 . 1 2 . . . . Brawler 1 | . . . 1 . . . . . Duelist 1 | . . . . 1 . . . . Best Kill Streak 4 | 4 3 3 2 4 2 2 1 . Combat Bots Only 3 | . 2 3 2 3 2 . . . Max Kills in Single Turn 1 | 1 1 1 1 1 1 1 1 . Gunslinging . | . . . . . . . . . Exploded 1 | . . . . 1 1 . . . Melee . | . . . . . . . . . Uniques/NPCs Destroyed . | . . . . . . . . . Combat | -11 -10 -10 -9 -9 -8 -7 -6 -6 -------- Run | Yrd Mat Min Mat Min Mat Fac Fac Ext Hostile Shots Fired 392 | . 29 5 12 18 79 13 36 200 Missed 145 | . 8 1 3 2 35 7 8 81 Hits 247 | . 21 4 9 16 44 6 28 119 Melee 27 | . . . 2 7 18 . . . Projectile 220 | . 21 4 7 9 26 6 28 119 AOE 2 | . . . . . 2 . . . Critical Strikes 18 | . 1 . 1 1 11 . . 4 Damage Taken 3659 | . 253 32 126 329 848 98 176 1797 Core 1329 | . 35 7 32 35 366 . 14 840 Absorbed by Shields . | . . . . . . . . . Ignored by Resistances 177 | . . . . . . . 31 146 Core Remaining (%) 79 | 100 . 83 . 83 33 100 . . Volleys Fired 87 | 19 20 4 9 11 16 4 3 1 Largest 2 | 2 2 2 2 2 2 2 2 2 Hottest 105 | 40 40 85 85 105 85 50 50 55 Shots Fired 156 | 38 40 8 19 17 20 8 4 2 Gun 150 | 38 40 8 19 13 18 8 4 2 Cannon . | . . . . . . . . . Launcher 6 | . . . . 4 2 . . . Special . | . . . . . . . . . Kinetic 110 | 38 40 4 10 . 4 8 4 2 Thermal 39 | . . 4 9 13 13 . . . Explosive 6 | . . . . 4 2 . . . Electromagnetic 1 | . . . . . 1 . . . Robot Hit Streak 14 | 6 14 4 7 5 6 3 4 3 Robot Miss Streak 3 | 3 2 1 1 3 3 1 1 1 Penetration Max . | . . . . . . . . . Secondary Targets 1 | . . . 1 . . . . . Max Gunslinging Chain 1 | . . . 1 . . . . . Shots Hit Robots 105 | 22 31 5 15 11 11 5 4 1 Core Hits 57 | 8 15 4 4 10 10 2 3 1 Critical Kills . | . . . . . . . . . Critical Parts Destroyed 1 | . 1 . . . . . . . Critical Strikes 1 | . 1 . . . . . . . Destroy 1 | . 1 . . . . . . . Melee Attacks . | . . . . . . . . . Impact . | . . . . . . . . . Slashing . | . . . . . . . . . Piercing . | . . . . . . . . . Sneak Attacks . | . . . . . . . . . Combat Hostiles . | . . . . . . . . . Follow-up Attacks . | . . . . . . . . . Damage Inflicted 1485 | 179 252 71 184 384 215 94 55 51 Guns 1091 | 179 252 71 184 92 136 94 55 28 Cannons . | . . . . . . . . . Explosions 371 | . . . . 292 79 . . . Melee . | . . . . . . . . . Ramming 23 | . . . . . . . . 23 Kinetic 679 | 179 252 6 48 . 17 94 55 28 Thermal 404 | . . 65 136 92 111 . . . Explosive 371 | . . . . 292 79 . . . Electromagnetic 8 | . . . . . 8 . . . Impact . | . . . . . . . . . Slashing . | . . . . . . . . . Piercing . | . . . . . . . . . Highest Corruption 4 | . . . 4 4 4 . . 3 Average Corruption 3 | . . . 4 4 4 . . 3 Corruption Purged . | . . . . . . . . . Corruption Blocked . | . . . . . . . . . Effects 20 | . . . 3 13 3 . . 1 Message Errors 5 | . . . 1 3 . . . 1 Matter Fused 4 | . . . 1 3 . . . . Energy Discharges 2 | . . . . 2 . . . . Parts Rejected 1 | . . . . . 1 . . . Parts Fused 1 | . . . . 1 . . . . Data Loss (minor) 3 | . . . . 1 2 . . . Data Loss (major) 2 | . . . . 2 . . . . Misfires 1 | . . . 1 . . . . . Weapon Failures 1 | . . . . 1 . . . . Overload Shots . | . . . . . . . . . Overflow Damage 5 | . . . . . 5 . . . Projectiles . | . . . . . . . . . Explosions 5 | . . . . . 5 . . . Melee . | . . . . . . . . . Knockbacks . | . . . . . . . . . Impact . | . . . . . . . . . Kinetic . | . . . . . . . . . Secondary . | . . . . . . . . . Self-Inflicted Damage 51 | . . . . . 40 . . 11 Shots 1 | . . . . . 1 . . . Rammed 2 | . . . . . . . . 2 Targets Rammed 2 | . . . . . . . . 2 Kicked . | . . . . . . . . . Crushed . | . . . . . . . . . Highest Temperature 20 | . 18 16 20 . 15 . . . Average Temperature 8 | . 8 12 8 . 8 . . . Received Heat Transfer 678 | . 156 . 42 54 207 54 54 111 Siege Activations . | . . . . . . . . . Martial Activations . | . . . . . . . . . Shielding Activations . | . . . . . . . . . Robots Disrupted . | . . . . . . . . . Combat Hostiles . | . . . . . . . . . Robots Corrupted . | . . . . . . . . . Combat Hostiles . | . . . . . . . . . Parts Fried . | . . . . . . . . . Impact Corruptions . | . . . . . . . . . Robots Melted . | . . . . . . . . . Combat Hostiles . | . . . . . . . . . Parts Melted . | . . . . . . . . . Heat Transferred 941 | . . 148 333 212 248 . . . Parts Sabotaged . | . . . . . . . . . Parts Stolen . | . . . . . . . . . Parts Stripped . | . . . . . . . . . Power Chain Reactions . | . . . . . . . . . Alert | -11 -10 -10 -9 -9 -8 -7 -6 -6 ------- Run | Yrd Mat Min Mat Min Mat Fac Fac Ext Maximum Alert Level 1 | . . . . . 1 . . . Low Security (%) 96 | 100 100 100 100 100 62 100 100 100 Level 1 3 | . . . . . 37 . . . Level 2 . | . . . . . . . . . Level 3 . | . . . . . . . . . Level 4 . | . . . . . . . . . Level 5 . | . . . . . . . . . High Security . | . . . . . . . . . Max Security . | . . . . . . . . . Peak Influence 322 | 10 65 75 40 65 322 146 54 35 Initial 146 | . . 4 . 1 . 146 49 11 Average 33 | 1 27 24 9 8 119 114 16 5 Influence Increases 1078 | 20 148 85 65 95 482 55 53 75 Destroy 0b10 Robot/C 300 | . 80 60 40 60 60 . . . Destroy 0b10 Robot/NC 60 | 20 10 . . 5 10 10 5 . Destroy Leader 64 | . 22 10 10 10 12 . . . Successful Hack 79 | . 6 . 15 . 10 . 48 . Disable Machine 30 | . . . . . 30 . . . Destroy Structure 35 | . . . . 20 15 . . . Partial Spotted 60 | . . . . . 60 . . . Lose Combat Pursuer 450 | . 30 15 . . 285 45 . 75 Influence Decreases 1078 | 20 136 97 61 99 160 276 130 99 Entered New Map 252 | . . 8 . 3 . 176 52 13 Time Decay 701 | 20 136 89 61 76 90 100 78 51 Lost Part 125 | . . . . 20 70 . . 35 Squads Dispatched 9 | . 1 . 1 . 3 2 2 . Investigation 3 | . . . 1 . . 1 1 . Extermination . | . . . . . . . . . Reinforcement 5 | . 1 . . . 2 1 1 . Assault . | . . . . . . . . . Garrison 1 | . . . . . 1 . . . Intercept . | . . . . . . . . . Searches Triggered . | . . . . . . . . . Construction Impeded . | . . . . . . . . . Haulers Reinforced . | . . . . . . . . . Active Scanning Responses . | . . . . . . . . . Cargo Convoy Interrupts . | . . . . . . . . . Stealth | -11 -10 -10 -9 -9 -8 -7 -6 -6 --------- Run | Yrd Mat Min Mat Min Mat Fac Fac Ext Distress Signals 2 | . . . . . 1 . . 1 Communications Jammed . | . . . . . . . . . Distress Signals . | . . . . . . . . . Times Spotted 69 | . 9 4 5 3 24 9 2 13 Peak Tracking Total 15 | . 2 3 3 3 15 5 1 8 Tactical Retreats 15 | . 2 1 . . 8 1 . 3 Traps | -11 -10 -10 -9 -9 -8 -7 -6 -6 ------- Run | Yrd Mat Min Mat Min Mat Fac Fac Ext Traps Triggered 4 | . . . . . . 4 . . Indirectly . | . . . . . . . . . Trap Hack Attempts . | . . . . . . . . . Triggered . | . . . . . . . . . Disarmed . | . . . . . . . . . Reprogrammed . | . . . . . . . . . Reused . | . . . . . . . . . Traps Extracted . | . . . . . . . . . Installed . | . . . . . . . . . Triggered . | . . . . . . . . . Machines | -11 -10 -10 -9 -9 -8 -7 -6 -6 ---------- Run | Yrd Mat Min Mat Min Mat Fac Fac Ext Machines Disabled 2 | . . . . . 2 . . . Max in Single Turn 1 | . . . . . 1 . . . Machines Repaired . | . . . . . . . . . Machines Dismantled . | . . . . . . . . . Machines Sabotaged . | . . . . . . . . . Overloaded Fab Kills . | . . . . . . . . . Hacking | -11 -10 -10 -9 -9 -8 -7 -6 -6 --------- Run | Yrd Mat Min Mat Min Mat Fac Fac Ext Machines Accessed 12 | . 1 . 4 . 1 1 5 . Terminals 8 | . 1 . 4 . . 1 2 . Fabricators . | . . . . . . . . . Repair Stations 2 | . . . . . . . 2 . Recycling Units . | . . . . . . . . . Scanalyzers 2 | . . . . . 1 . 1 . Garrison Access . | . . . . . . . . . Total Hacks 29 | . 2 . 11 . 3 2 11 . Successful 12 | . 2 . 4 . 2 . 4 . Failed 17 | . . . 7 . 1 2 7 . Catastrophic 1 | . . . . . . . 1 . Database Lockouts . | . . . . . . . . . Manual 5 | . 2 . 1 . . 2 . . Terminals 18 | . 2 . 11 . . 2 3 . Fabricators . | . . . . . . . . . Repair Stations 4 | . . . . . . . 4 . Recycling Units . | . . . . . . . . . Scanalyzers 7 | . . . . . 3 . 4 . Garrison Access . | . . . . . . . . . Terminal Hacks 8 | . 2 . 4 . . . 2 . Robot Analysis 3 | . 2 . 1 . . . . . Prototype ID Bank 2 | . . . 2 . . . . . Branch Access Points 1 | . . . . . . . 1 . Emergency Access Points 1 | . . . 1 . . . . . Recycling Unit Index 1 | . . . . . . . 1 . Fabricator Hacks . | . . . . . . . . . Repair Station Hacks 1 | . . . . . . . 1 . Scan Component 1 | . . . . . . . 1 . Recycling Unit Hacks . | . . . . . . . . . Scanalyzer 3 | . . . . . 2 . 1 . Retrieve Study 3 | . . . . . 2 . 1 . Garrison Access Hacks . | . . . . . . . . . Unauthorized Hacks . | . . . . . . . . . Terminals . | . . . . . . . . . Fabricators . | . . . . . . . . . Repair Stations . | . . . . . . . . . Recycling Units . | . . . . . . . . . Scanalyzers . | . . . . . . . . . Garrison Access . | . . . . . . . . . Data Cores Recovered . | . . . . . . . . . Used . | . . . . . . . . . Hacking Detections 10 | . . . 4 . . 1 5 . Full Trace Events 2 | . . . 1 . . . 1 . Feedback Events . | . . . . . . . . . Feedback Blocked . | . . . . . . . . . Robot Schematics Acquired . | . . . . . . . . . Robots Built . | . . . . . . . . . Authchips . | . . . . . . . . . Time . | . . . . . . . . . Total Robot Build Rating . | . . . . . . . . . Part Schematics Acquired . | . . . . . . . . . Parts Built . | . . . . . . . . . Authchips . | . . . . . . . . . Time . | . . . . . . . . . Total Part Build Rating . | . . . . . . . . . Part Studies Acquired 3 | . . . . . 2 . 1 . Parts Repaired . | . . . . . . . . . Time . | . . . . . . . . . Parts Recycled . | . . . . . . . . . Recycled Matter . | . . . . . . . . . Retrieved Matter . | . . . . . . . . . Retrieved Components . | . . . . . . . . . Parts Scanalyzed . | . . . . . . . . . Part Schematics Acquired . | . . . . . . . . . Parts Damaged . | . . . . . . . . . Bothacking | -11 -10 -10 -9 -9 -8 -7 -6 -6 ------------ Run | Yrd Mat Min Mat Min Mat Fac Fac Ext Used RIF Installer . | . . . . . . . . . Robots Hacked . | . . . . . . . . . Non-combat . | . . . . . . . . . Combat . | . . . . . . . . . Robot Hacks Applied . | . . . . . . . . . Relay Couplers Released . | . . . . . . . . . Fabnet Peak Effective % . | . . . . . . . . . Robots Rewired . | . . . . . . . . . Allies Hacked . | . . . . . . . . . Hacks Repelled . | . . . . . . . . . Allies | -11 -10 -10 -9 -9 -8 -7 -6 -6 -------- Run | Yrd Mat Min Mat Min Mat Fac Fac Ext Total Allies . | . . . . . . . . . Largest Group . | . . . . . . . . . Highest-Rated Group . | . . . . . . . . . Highest-Rated Ally . | . . . . . . . . . Total Orders . | . . . . . . . . . Ally Attacks . | . . . . . . . . . Total Damage . | . . . . . . . . . Kills . | . . . . . . . . . Allies Corrupted . | . . . . . . . . . Allies Melted . | . . . . . . . . . Intel | -11 -10 -10 -9 -9 -8 -7 -6 -6 ------- Run | Yrd Mat Min Mat Min Mat Fac Fac Ext Active Infowar (turns) 1127 | 20 277 31 . . 157 209 319 114 Sensors 673 | . . . . . 31 209 319 114 Terrain 186 | . . . . . 5 181 . . Seismic 454 | 20 277 31 . . 126 . . . Robot Analysis Total 3 | . 2 . 1 . . . . . Derelict Logs Recovered 1 | . . 1 . . . . . . Drone Launches . | . . . . . . . . . Drone Recoveries . | . . . . . . . . . Exploration | -11 -10 -10 -9 -9 -8 -7 -6 -6 ------------- Run | Yrd Mat Min Mat Min Mat Fac Fac Ext Turns Passed 2645 | 148 320 266 231 611 278 216 319 256 Spaces Moved 2196 | 48 152 121 119 347 361 306 381 361 Core 79 | 3 . . . . 61 . . 15 Treads 803 | 45 152 121 119 347 19 . . . Legs . | . . . . . . . . . Wheels . | . . . . . . . . . Hover 1061 | . . . . . 28 306 381 346 Flight 253 | . . . . . 253 . . . Fastest Speed 29 | 50 160 160 160 160 29 48 44 50 Average Speed 91 | 153 160 160 160 160 43 57 47 67 Slowest Speed 300 | 160 160 160 160 160 240 60 52 300 Overloaded Moves . | . . . . . . . . . Propulsion Burnouts . | . . . . . . . . . Robots Hopped 5 | . . . . . 5 . . . Potential Cave-ins . | . . . . . . . . . Cave-ins Triggered . | . . . . . . . . . Exploration Rate (%) 24 | 4 25 20 18 60 44 12 10 31 Regions Visited 8 Branch Regions 3 Pre-discovered Areas 1 | . . 1 . . . . . . Known Exits Taken 1 | . . . . . . . 1 . Unknown Exits Taken 7 | 1 1 1 1 1 1 1 . . Scrap Searched 1 | . . . . 1 . . . . Spaces Dug . | . . . . . . . . . Terrain Destroyed 44 | . . . . 30 14 . . . Melee . | . . . . . . . . . Projectile . | . . . . . . . . . AOE 44 | . . . . 30 14 . . . Terrain Rammed . | . . . . . . . . . Walls Destroyed . | . . . . . . . . . Machines Disabled . | . . . . . . . . . Actions | -11 -10 -10 -9 -9 -8 -7 -6 -6 --------- Run | Yrd Mat Min Mat Min Mat Fac Fac Ext Total 2676 | 89 197 185 143 383 455 338 514 372 Wait 297 | 12 18 59 11 19 39 19 114 6 Move 2178 | 47 151 120 118 346 350 305 380 361 Hop 5 | . . . . . 5 . . . Pick Up 21 | 4 4 . 2 2 3 2 4 . Fast Attach 41 | 7 . . 2 2 21 6 3 . Attach 13 | . 1 . . 2 4 1 3 2 Detach 1 | . 1 . . . . . . . Swap 6 | . 1 2 . 1 . . 2 . Drop 25 | . 1 . 1 . 17 1 5 . Fire 87 | 19 20 4 9 11 16 4 3 1 Melee . | . . . . . . . . . Ram 2 | . . . . . . . . 2 Kick . | . . . . . . . . . Crush . | . . . . . . . . . Escape Stasis . | . . . . . . . . . Rewire . | . . . . . . . . . Trap . | . . . . . . . . . Miscellaneous . | . . . . . . . . . Route ------- -11/Scrapyard -10/Materials -10/Mines -9/Materials -9/Mines (discovered 2 exits: *Mat x2) -8/Materials -7/Factory -6/Factory (discovered 4 exits: Low x2 / *Ext x2) -6/Extension History --------- Turn | Location | Event 9 | -11/Scrapyard | Discovered new exit (range 15) 149 | -11/Scrapyard | Entered Materials 309 | -10/Materials | Build established: Mutant 459 | -10/Materials | Discovered new exit (range 6) 469 | -10/Materials | Entered Mines 586 | -10/Mines | Deemed a non-threat by the Exiles lab entrance 658 | -10/Mines | Discovered new exit (range 5) 735 | -10/Mines | Entered Materials 735 | -9/Materials | Evolved 2 slots: Propulsion x1, Utility x1 956 | -9/Materials | Discovered new exit (range 6) 966 | -9/Materials | Entered Mines 969 | -9/Mines | A Derelict revealed a hidden shortcut to a safe place 1024 | -9/Mines | Discovered new exit (range 8) 1119 | -9/Mines | Discovered new exit (range 7) 1339 | -9/Mines | Build established: Scavenger-Mutant 1577 | -9/Mines | Entered Materials 1577 | -8/Materials | Evolved 2 slots: Utility x2 1651 | -8/Materials | Garrison activated, responded to threat 1763 | -8/Materials | Core integrity fell below 50% 1803 | -8/Materials | Discovered new exit (range 15) 1809 | -8/Materials | Lost 7 parts (1p1n3u2w) 1855 | -8/Materials | Entered Factory 1855 | -7/Factory | Evolved 2 slots: Propulsion x1, Utility x1 2039 | -7/Factory | Build established: Mutant 2060 | -7/Factory | Discovered new exit (range 15) 2071 | -7/Factory | Entered another Factory area 2071 | -6/Factory | Evolved 2 slots: Propulsion x1, Utility x1 2144 | -6/Factory | Identified exit to Lower Caves 2144 | -6/Factory | Identified exit to Extension 2390 | -6/Factory | Entered Extension 2456 | -6/Extension | Spotted B-75 Beast 2563 | -6/Extension | Lost 8 parts (3n3u2w) 2632 | -6/Extension | Core integrity fell below 50% 2634 | -6/Extension | Spotted B-75 Beast 2642 | -6/Extension | Core integrity fell below 20% 2646 | -6/Extension | Destroyed by B-75 Beast with Heavy Plasma Cannon Last Messages --------------- 02567_ Penetrated by Slug. 02567_ Slammed into H-66 Slayer. 02567_ Fission Core destroyed. 02567_ System corrupted by crushing effect (+3). 02568_ Penetrated by Slug. 02571_ R-10 Processor enters Transfer Station. 02574_ U-05 Engineer enters Transfer Station. 02574_ Slug penetrates H-66 Slayer. 02575_ Penetrated by Slug. 02577_ Slug penetrates Wall. 02580_ Penetrated by Slug. 02586_ Acquired 21 matter. 02588_ GMH3GCOBJMO23HXM8O>C YGO9N|02G2B 02631_ Knocked back. 02633_ Acquired 5 matter. 02637_ Cmb. Airjet destroyed. 02637_ R-10 Processor destroyed. 02640_ Cmb. Airjet destroyed. 02641_ Machine disabled. 02643_ Hacking Suite destroyed. Map ----- +----------------------------------------------------+ | ?????????????????????????????????????????????????? | | ?????????????????????????????????????????????????? | | ?????????????????????????????????????????????????? | | ?????????????????????????????????????????????????? | | ?????????????????????????????????????????????????? | | ?????????????????????????????????????????????????? | | ?????????????????????????????????????????????????? | | ?????????????????????????????????????????????????? | | ?????????????????????????????????????????????????? | | ?????????????????????????????????????????????????? | | ??????????? ?????????? ??????????????????????????? | | ??????????? ?????????? ??????????????????????????? | | ??????????? ?????????? ??????????????????????????? | | ??????????# #????????# #?????????????????????????? | | ??????????# #????????# #?????????????????????????? | | ??????????# #????????# #?????????????????????????? | | ??????????# #?######?# #?????????????????????????? | | ????????### ### ## ### ###???????????????????????? | | ????????#"" "" Y "" ""#???????????????????????? | | ???????## " " Y " #???????????????????????? | | ???????#" R #???????????????????????? | | ????????#% #???????????????????????? | | ###"##### ###############?????????? | | *%! R% ????????? | | = u ????????? | | % @ ????????? | | BBu % R ????????? | | BB BB u R R ????????? | | ######### BB ###############?????????? | | ????????# #???????????????????????? | | ????????# #???????????????????????? | | ????????# #???????????????????????? | | ????????# #???????????????????????? | | ????????######T#"""#######???????????????????????? | | ?????????????###?????????????????????????????????? | | ?????????????????????????????????????????????????? | | | | | | | | | | | | | | | | | | | | | | | | | | | | | +----------------------------------------------------+ Best States ------------- Heat Dissipation 45 Energy Generation 18 Energy Capacity 310 Matter Stores 300 Matter Capacity 300 Sight Range 16 Robot Scan Range 15 Terrain Scan Range 16 Terrain Scan Density 10 Additional Mass Support 9 Armor Coverage 225 Resistance: KI 20 Evasion (%) 64 Core Analysis 6 Recoil Reduction 3 Offensive Hacking 10 Item Schematics ----------------- None Robot Schematics ------------------ None Fabricated ------------ Nothing Repaired ---------- Nothing Studied --------- Lgt. Deuterium Engine | -8/Materials | Hacked EM Shotgun | -8/Materials | Hacked Gravmag System | -6/Factory | Hacked Alien Tech Used ----------------- None Achievements -------------- None Challenges ------------ None Game ------ Seed IntegrityVampiricBroadsword Manual? 0 Play Time 00:27:06 Cumulative 288.6 hours Start 2026.08.28 @ 09:05:38 End 2026.08.28 @ 09:30:37 Sessions 1 Manual Loads 0 Difficulty Rogue Special Mode None Game No. 366 Rogue 366 Adventurer 0 Explorer 0 Win Type - Total 7 Types 6/0/0/1/0/0/0/0/0/0 Lore% 79 Gallery% 67 Achievement% 56 Wizard Run 0 Options --------- Layout 2 ASCII 0 Keyboard 0 Movement Mouse Keybinds 0 Fullscreen 1 Font 24/Smallcaps Map View 50x44 Zoom Use 0% Tactical HUD 1 Map Filters NONE Filters NONE Steam 1 RUN: 7216cb66-a1fc-4ce9-b0af-d3d2a570e834